{"text_format":"3","workbook":"xlsx","n_sheets":4,"sheets":["Početak","Proračun za vjenčanje","Odjeća-Prijem-Glazba-Foto.","Ukrasi-Cvijeće-Darovi-Putovanje"],"not_rendered":{"charts":1,"defined_names":22},"read":"whole","date_system":"1900"}

{"sheet":"Početak","index":0,"n_rows":7,"n_cols":2,"rows_kept":7}
[null,"O OVOM PREDLOŠKU"]
[null,"Pomoću ovog predloška pratite troškove vjenčanja."]
[null,"Unesite procijenjeno i stvarno troškove u različite kategorije na zasebnim radnim listovima."]
[null,"Sažetak proračuna za vjenčanje i grafikon automatski će se ažurirati za vas."]
[null,"Napomena: "]
[null,"dodatne su upute navedene u stupcu A na svakom radnom listu. Ovaj je tekst namjerno skriven. Da biste uklonili tekst, odaberite stupac A, a zatim odaberite IZBRIŠI. Da biste otkrili tekst, odaberite stupac A, a zatim promijenite boju fonta."]
[null,"Da biste saznali više o tablicama, pritisnite SHIFT, a zatim F10 unutar tablice pa odaberite mogućnost TABLICA, a potom ZAMJENSKI TEKST."]

{"sheet":"Proračun za vjenčanje","index":1,"n_rows":19,"n_cols":6,"rows_kept":19,"merged":[[2,2,4,5],[18,2,42,5]]}
["Na ovom radnom listu stvorite Proračun za vjenčanje. Da biste ažurirali sažetak i grafikon na trenutnom radnom listu, unesite pojedinosti u tablice na radnom listu Odjeća-Prijem-Glazba-Fotografije i na radnom listu Ukrasi-Cvijeće-Darovi-Putovanje. U ćelijama u ovom stupcu nalaze se korisne upute za korištenje ovog radnog lista. Oznaka Datum vjenčanja je u ćeliji C1.",null,"Datum vjenčanja:"]
["U ćeliju C2 unesite Datum vjenčanja. Broj preostalih dana automatski se izračunavaju u ćeliji E2.",null,{"$f":"TODAY()+365","v":"2019-12-04"},"Broj preostalih dana:",{"$f":"C2-TODAY()","v":365}]
["Naslov ovog radnog lista nalazi se u ćeliji C3. Sljedeća je uputa u ćeliji A6.",null,"Sažetak proračuna za vjenčanje"]
[]
[]
["Tablica Sažetak proračuna koja počinje u ćeliji C6 automatski se ažurira. Sljedeća se uputa nalazi u ćeliji A19.",null,"KATEGORIJA","PROCIJENJENO","STVARNO","VIŠE/MANJE"]
[null,null,"Odjeća",{"$f":"Odjeća_Ukupno_procj","v":{"v":9490,"d":"9,490.00"}},{"$f":"Odjeća_Ukupno_stv","v":{"v":9770,"d":"9,770.00"}},{"$f":"SažetakProračuna[[#This Row],[PROCIJENJENO]]-SažetakProračuna[[#This Row],[STVARNO]]","v":{"v":-280,"d":"-280.00"}}]
[null,null,"Prijem",{"$f":"Prijem_Ukupno_procj","v":{"v":1050,"d":"1,050.00"}},{"$f":"Prijem_Ukupno_stv","v":{"v":928,"d":"928.00"}},{"$f":"SažetakProračuna[[#This Row],[PROCIJENJENO]]-SažetakProračuna[[#This Row],[STVARNO]]","v":{"v":122,"d":"122.00"}}]
[null,null,"Glazba",{"$f":"Glazba_Zabava_Ukupno_procj","v":{"v":600,"d":"600.00"}},{"$f":"Glazba_Zabava_Ukupno_stv","v":{"v":400,"d":"400.00"}},{"$f":"SažetakProračuna[[#This Row],[PROCIJENJENO]]-SažetakProračuna[[#This Row],[STVARNO]]","v":{"v":200,"d":"200.00"}}]
[null,null,"Tisak",{"$f":"Tisak_Tiskanice_Ukupno_procj","v":{"v":935,"d":"935.00"}},{"$f":"Tisak_Tiskanice_Ukupno_stv","v":{"v":870,"d":"870.00"}},{"$f":"SažetakProračuna[[#This Row],[PROCIJENJENO]]-SažetakProračuna[[#This Row],[STVARNO]]","v":{"v":65,"d":"65.00"}}]
[null,null,"Fotografija",{"$f":"Fotografije_Ukupno_procj","v":{"v":1625,"d":"1,625.00"}},{"$f":"Fotografije_Ukupno_stv","v":{"v":1575,"d":"1,575.00"}},{"$f":"SažetakProračuna[[#This Row],[PROCIJENJENO]]-SažetakProračuna[[#This Row],[STVARNO]]","v":{"v":50,"d":"50.00"}}]
[null,null,"Ukrasi",{"$f":"Ukrasi_Ukupno_procj","v":{"v":700,"d":"700.00"}},{"$f":"Ukrasi_Ukupno_stv","v":{"v":720,"d":"720.00"}},{"$f":"SažetakProračuna[[#This Row],[PROCIJENJENO]]-SažetakProračuna[[#This Row],[STVARNO]]","v":{"v":-20,"d":"-20.00"}}]
[null,null,"Cvijeće",{"$f":"Cvijeće_Ukupno_procj","v":{"v":900,"d":"900.00"}},{"$f":"Cvijeće_Ukupno_stv","v":{"v":850,"d":"850.00"}},{"$f":"SažetakProračuna[[#This Row],[PROCIJENJENO]]-SažetakProračuna[[#This Row],[STVARNO]]","v":{"v":50,"d":"50.00"}}]
[null,null,"Darovi",{"$f":"Darovi_Ukupno_procj","v":{"v":1345,"d":"1,345.00"}},{"$f":"Darovi_Ukupno_stv","v":{"v":1075,"d":"1,075.00"}},{"$f":"SažetakProračuna[[#This Row],[PROCIJENJENO]]-SažetakProračuna[[#This Row],[STVARNO]]","v":{"v":270,"d":"270.00"}}]
[null,null,"Putovanja",{"$f":"Putovanje_Prijevoz_Ukupno_procj","v":{"v":100,"d":"100.00"}},{"$f":"Putovanje_Prijevoz_Ukupno_stv","v":{"v":165,"d":"165.00"}},{"$f":"SažetakProračuna[[#This Row],[PROCIJENJENO]]-SažetakProračuna[[#This Row],[STVARNO]]","v":{"v":-65,"d":"-65.00"}}]
[null,null,"Ostalo",{"$f":"Drugi_Troškovi_Ukupno_procj","v":{"v":885,"d":"885.00"}},{"$f":"Drugi_Troškovi_Ukupno_stv","v":{"v":1021,"d":"1,021.00"}},{"$f":"SažetakProračuna[[#This Row],[PROCIJENJENO]]-SažetakProračuna[[#This Row],[STVARNO]]","v":{"v":-136,"d":"-136.00"}}]
[null,null,"Ukupni troškovi",{"$f":"SUBTOTAL(109,SažetakProračuna[PROCIJENJENO])","v":{"v":17630,"d":"17,630.00"}},{"$f":"SUBTOTAL(109,SažetakProračuna[STVARNO])","v":{"v":17374,"d":"17,374.00"}},{"$f":"SUBTOTAL(109,SažetakProračuna[VIŠE/MANJE])","v":{"v":256,"d":"256.00"}}]
[]
["Tortni grafikon u ćeliji C19 automatski se ažurira.",null,"U ovoj je ćeliji tortni grafikon koji prikazuje postotak troškova za svaku kategoriju."]

{"sheet":"Odjeća-Prijem-Glazba-Foto.","index":2,"n_rows":56,"n_cols":6,"rows_kept":56,"merged":[[16,1,16,4],[28,1,28,4],[29,1,29,4],[35,1,35,4],[48,1,48,4]]}
["U odgovarajuće tablice na ovom radnom listu unesite procijenjeno i stvarno trošak za svaku kategorija. Više ili manje iznosi automatski se izračunavaju. Oznaka Odjeća nalazi se u ćeliji s desne strane. U ćelijama u ovom stupcu nalaze se korisne upute za korištenje ovog radnog lista. Pomoću tipke sa strelicom prema dolje počnite s radom.","Odjeća",{"$nulls":3}," "]
[" Unesite pojedinosti u tablicu Odjeća počevši s ćelijom s desne strane. Sljedeće se upute nalaze u ćeliji A18.","KATEGORIJA","PROCIJENJENO","STVARNO","VIŠE/MANJE"," "]
[null,"Zaručnički prsten(i)",{"v":1500,"d":"1,500.00"},{"v":1500,"d":"1,500.00"},{"$f":"'Odjeća-Prijem-Glazba-Foto.'!$C3-'Odjeća-Prijem-Glazba-Foto.'!$D3","v":{"v":0,"d":"0.00"}}]
[null,"Prsten mladenca 1",{"v":2000,"d":"2,000.00"},{"v":2300,"d":"2,300.00"},{"$f":"'Odjeća-Prijem-Glazba-Foto.'!$C4-'Odjeća-Prijem-Glazba-Foto.'!$D4","v":{"v":-300,"d":"-300.00 "}}]
[null,"Haljina/smoking mladenca 1",{"v":3000,"d":"3,000.00"},{"v":2750,"d":"2,750.00"},{"$f":"'Odjeća-Prijem-Glazba-Foto.'!$C5-'Odjeća-Prijem-Glazba-Foto.'!$D5","v":{"v":250,"d":"250.00"}}]
[null,"Veo/šešir mladenca 1",{"v":500,"d":"500.00"},{"v":500,"d":"500.00"},{"$f":"'Odjeća-Prijem-Glazba-Foto.'!$C6-'Odjeća-Prijem-Glazba-Foto.'!$D6","v":{"v":0,"d":"0.00"}}]
[null,"Cipele mladenca 1",{"v":350,"d":"350.00"},{"v":300,"d":"300.00"},{"$f":"'Odjeća-Prijem-Glazba-Foto.'!$C7-'Odjeća-Prijem-Glazba-Foto.'!$D7","v":{"v":50,"d":"50.00"}}]
[null,"Nakit mladenca 1",{"v":400,"d":"400.00"},{"v":550,"d":"550.00"},{"$f":"'Odjeća-Prijem-Glazba-Foto.'!$C8-'Odjeća-Prijem-Glazba-Foto.'!$D8","v":{"v":-150,"d":"-150.00 "}}]
[null,"Čarape mladenca 1",{"v":20,"d":"20.00"},{"v":20,"d":"20.00"},{"$f":"'Odjeća-Prijem-Glazba-Foto.'!$C9-'Odjeća-Prijem-Glazba-Foto.'!$D9","v":{"v":0,"d":"0.00"}}]
[null,"Prsten mladenca 2",{"v":300,"d":"300.00"},{"v":250,"d":"250.00"},{"$f":"'Odjeća-Prijem-Glazba-Foto.'!$C10-'Odjeća-Prijem-Glazba-Foto.'!$D10","v":{"v":50,"d":"50.00"}}]
[null,"Haljina/smoking mladenca 2",{"v":300,"d":"300.00"},{"v":350,"d":"350.00"},{"$f":"'Odjeća-Prijem-Glazba-Foto.'!$C11-'Odjeća-Prijem-Glazba-Foto.'!$D11","v":{"v":-50,"d":"-50.00 "}}]
[null,"Veo/šešir mladenca 2",{"v":500,"d":"500.00"},{"v":500,"d":"500.00"},{"$f":"'Odjeća-Prijem-Glazba-Foto.'!$C12-'Odjeća-Prijem-Glazba-Foto.'!$D12","v":{"v":0,"d":"0.00"}}]
[null,"Cipele mladenca 2",{"v":200,"d":"200.00"},{"v":175,"d":"175.00"},{"$f":"'Odjeća-Prijem-Glazba-Foto.'!$C13-'Odjeća-Prijem-Glazba-Foto.'!$D13","v":{"v":25,"d":"25.00"}}]
[null,"Nakit mladenca 2",{"v":400,"d":"400.00"},{"v":550,"d":"550.00"},{"$f":"'Odjeća-Prijem-Glazba-Foto.'!$C14-'Odjeća-Prijem-Glazba-Foto.'!$D14","v":{"v":-150,"d":"-150.00 "}}]
[null,"Čarape mladenca 2",{"v":20,"d":"20.00"},{"v":25,"d":"25.00"},{"$f":"'Odjeća-Prijem-Glazba-Foto.'!$C15-'Odjeća-Prijem-Glazba-Foto.'!$D15","v":{"v":-5,"d":"-5.00 "}}]
[null,"Ukupno za odjeću",{"$f":"SUBTOTAL(109,Odjeća[PROCIJENJENO])","v":{"v":9490,"d":"9,490.00"}},{"$f":"SUBTOTAL(109,Odjeća[STVARNO])","v":{"v":9770,"d":"9,770.00"}},{"$f":"SUBTOTAL(109,Odjeća[VIŠE/MANJE])","v":{"v":-280,"d":"-280.00 "}}]
[]
["Oznaka Prijem nalazi se u ćeliji s desne strane.","Prijem*"]
["U tablicu koja počinje u ćeliji s desne strane unesite troškove Prijem, uključujući troškove zabave i ukrasa. Sljedeće se upute nalaze u ćeliji A31.","KATEGORIJA","PROCIJENJENO","STVARNO","VIŠE/MANJE"]
[null,"Naknade za prostorije/dvoranu",{"v":200,"d":"200.00"},{"v":150,"d":"150.00"},{"$f":"'Odjeća-Prijem-Glazba-Foto.'!$C20-'Odjeća-Prijem-Glazba-Foto.'!$D20","v":{"v":50,"d":"50.00"}}]
[null,"Stolovi i sjedala",{"v":100,"d":"100.00"},{"v":50,"d":"50.00"},{"$f":"'Odjeća-Prijem-Glazba-Foto.'!$C21-'Odjeća-Prijem-Glazba-Foto.'!$D21","v":{"v":50,"d":"50.00"}}]
[null,"Hrana",{"v":0,"d":"0.00"},{"v":0,"d":"0.00"},{"$f":"'Odjeća-Prijem-Glazba-Foto.'!$C22-'Odjeća-Prijem-Glazba-Foto.'!$D22","v":{"v":0,"d":"0.00"}}]
[null,"Pića",{"v":0,"d":"0.00"},{"v":0,"d":"0.00"},{"$f":"'Odjeća-Prijem-Glazba-Foto.'!$C23-'Odjeća-Prijem-Glazba-Foto.'!$D23","v":{"v":0,"d":"0.00"}}]
[null,"Stolnjaci",{"v":0,"d":"0.00"},{"v":0,"d":"0.00"},{"$f":"'Odjeća-Prijem-Glazba-Foto.'!$C24-'Odjeća-Prijem-Glazba-Foto.'!$D24","v":{"v":0,"d":"0.00"}}]
[null,"Torta",{"v":700,"d":"700.00"},{"v":700,"d":"700.00"},{"$f":"'Odjeća-Prijem-Glazba-Foto.'!$C25-'Odjeća-Prijem-Glazba-Foto.'!$D25","v":{"v":0,"d":"0.00"}}]
[null,"Usluge",{"v":50,"d":"50.00"},{"v":28,"d":"28.00"},{"$f":"'Odjeća-Prijem-Glazba-Foto.'!$C26-'Odjeća-Prijem-Glazba-Foto.'!$D26","v":{"v":22,"d":"22.00"}}]
[null,"Osoblje i honorari",{"v":0,"d":"0.00"},{"v":0,"d":"0.00"},{"$f":"'Odjeća-Prijem-Glazba-Foto.'!$C27-'Odjeća-Prijem-Glazba-Foto.'!$D27","v":{"v":0,"d":"0.00"}}]
[null,"Ukupno za prijem",{"$f":"SUBTOTAL(109,Prijem[PROCIJENJENO])","v":{"v":1050,"d":"1,050.00"}},{"$f":"SUBTOTAL(109,Prijem[STVARNO])","v":{"v":928,"d":"928.00"}},{"$f":"SUBTOTAL(109,Prijem[VIŠE/MANJE])","v":{"v":122,"d":"122.00"}}]
[null,"* Ne uključuje zabavu i ukrase"]
[]
["Oznaka Glazba ili Zabava nalazi se u ćeliji s desne strane.","Glazba/zabava"]
["Unesite detalje u tablicu Glazba, koja počinje od ćelije s desne strane. Sljedeće se upute nalaze u ćeliji A37.","KATEGORIJA","PROCIJENJENO","STVARNO","VIŠE/MANJE"]
[null,"Glazbenici za vjenčanje",{"v":400,"d":"400.00"},{"v":400,"d":"400.00"},{"$f":"'Odjeća-Prijem-Glazba-Foto.'!$C33-'Odjeća-Prijem-Glazba-Foto.'!$D33","v":{"v":0,"d":"0.00"}}]
[null,"Grupa/DJ za prijem",{"v":200,"d":"200.00"},{"v":0,"d":"0.00"},{"$f":"'Odjeća-Prijem-Glazba-Foto.'!$C34-'Odjeća-Prijem-Glazba-Foto.'!$D34","v":{"v":200,"d":"200.00"}}]
[null,"Ukupno za glazbu/zabavu",{"$f":"SUBTOTAL(109,Glazba[PROCIJENJENO])","v":{"v":600,"d":"600.00"}},{"$f":"SUBTOTAL(109,Glazba[STVARNO])","v":{"v":400,"d":"400.00"}},{"$f":"SUBTOTAL(109,Glazba[VIŠE/MANJE])","v":{"v":200,"d":"200.00"}}]
[]
["Oznaka Tisak ili Tiskanice nalazi se u ćeliji s desne strane.","Tisak/tiskanice"]
["Unesite detalje u tablicu Tisak, koja počinje od ćelije s desne strane. Sljedeća je uputa u ćeliji A50.","KATEGORIJA","PROCIJENJENO","STVARNO","VIŠE/MANJE"]
[null,"Pozivnice",{"v":500,"d":"500.00"},{"v":450,"d":"450.00"},{"$f":"'Odjeća-Prijem-Glazba-Foto.'!$C39-'Odjeća-Prijem-Glazba-Foto.'!$D39","v":{"v":50,"d":"50.00"}}]
[null,"Objave",{"v":200,"d":"200.00"},{"v":175,"d":"175.00"},{"$f":"'Odjeća-Prijem-Glazba-Foto.'!$C40-'Odjeća-Prijem-Glazba-Foto.'!$D40","v":{"v":25,"d":"25.00"}}]
[null,"Zahvalnice",{"v":100,"d":"100.00"},{"v":100,"d":"100.00"},{"$f":"'Odjeća-Prijem-Glazba-Foto.'!$C41-'Odjeća-Prijem-Glazba-Foto.'!$D41","v":{"v":0,"d":"0.00"}}]
[null,"Osobne tiskanice",{"v":0,"d":"0.00"},{"v":0,"d":"0.00"},{"$f":"'Odjeća-Prijem-Glazba-Foto.'!$C42-'Odjeća-Prijem-Glazba-Foto.'!$D42","v":{"v":0,"d":"0.00"}}]
[null,"Knjiga gostiju",{"v":25,"d":"25.00"},{"v":25,"d":"25.00"},{"$f":"'Odjeća-Prijem-Glazba-Foto.'!$C43-'Odjeća-Prijem-Glazba-Foto.'!$D43","v":{"v":0,"d":"0.00"}}]
[null,"Programi",{"v":75,"d":"75.00"},{"v":80,"d":"80.00"},{"$f":"'Odjeća-Prijem-Glazba-Foto.'!$C44-'Odjeća-Prijem-Glazba-Foto.'!$D44","v":{"v":-5,"d":"-5.00 "}}]
[null,"Ubrusi za prijem",{"v":35,"d":"35.00"},{"v":40,"d":"40.00"},{"$f":"'Odjeća-Prijem-Glazba-Foto.'!$C45-'Odjeća-Prijem-Glazba-Foto.'!$D45","v":{"v":-5,"d":"-5.00 "}}]
[null,"Šibice",{"v":0,"d":"0.00"},{"v":0,"d":"0.00"},{"$f":"'Odjeća-Prijem-Glazba-Foto.'!$C46-'Odjeća-Prijem-Glazba-Foto.'!$D46","v":{"v":0,"d":"0.00"}}]
[null,"Kaligrafija",{"v":0,"d":"0.00"},{"v":0,"d":"0.00"},{"$f":"'Odjeća-Prijem-Glazba-Foto.'!$C47-'Odjeća-Prijem-Glazba-Foto.'!$D47","v":{"v":0,"d":"0.00"}}]
[null,"Ukupno za tisak/tiskanice",{"$f":"SUBTOTAL(109,Tisak[PROCIJENJENO])","v":{"v":935,"d":"935.00"}},{"$f":"SUBTOTAL(109,Tisak[STVARNO])","v":{"v":870,"d":"870.00"}},{"$f":"SUBTOTAL(109,Tisak[VIŠE/MANJE])","v":{"v":65,"d":"65.00"}}]
[]
["Oznaka Fotografija nalazi se u ćeliji s desne strane.","Fotografija"]
["Unesite detalje u tablicu Fotografija, koja počinje od ćelije s desne strane.","KATEGORIJA","PROCIJENJENO","STVARNO","VIŠE/MANJE"]
[null,"Službene fotografije",{"v":1300,"d":"1,300.00"},{"v":1300,"d":"1,300.00"},{"$f":"'Odjeća-Prijem-Glazba-Foto.'!$C52-'Odjeća-Prijem-Glazba-Foto.'!$D52","v":{"v":0,"d":"0.00"}}]
[null,"Dodatne fizičke fotografije",{"v":25,"d":"25.00"},{"v":25,"d":"25.00"},{"$f":"'Odjeća-Prijem-Glazba-Foto.'!$C53-'Odjeća-Prijem-Glazba-Foto.'!$D53","v":{"v":0,"d":"0.00"}}]
[null,"Fotoalbumi",{"v":100,"d":"100.00"},{"v":100,"d":"100.00"},{"$f":"'Odjeća-Prijem-Glazba-Foto.'!$C54-'Odjeća-Prijem-Glazba-Foto.'!$D54","v":{"v":0,"d":"0.00"}}]
[null,"Videosnimke",{"v":200,"d":"200.00"},{"v":150,"d":"150.00"},{"$f":"'Odjeća-Prijem-Glazba-Foto.'!$C55-'Odjeća-Prijem-Glazba-Foto.'!$D55","v":{"v":50,"d":"50.00"}}]
[null,"Ukupno za fotografije",{"$f":"SUBTOTAL(109,Fotografija[PROCIJENJENO])","v":{"v":1625,"d":"1,625.00"}},{"$f":"SUBTOTAL(109,Fotografija[STVARNO])","v":{"v":1575,"d":"1,575.00"}},{"$f":"SUBTOTAL(109,Fotografija[VIŠE/MANJE])","v":{"v":50,"d":"50.00"}}]

{"sheet":"Ukrasi-Cvijeće-Darovi-Putovanje","index":3,"n_rows":48,"n_cols":5,"rows_kept":48,"merged":[[8,1,8,4],[9,1,9,4],[18,1,18,4],[27,1,27,4],[34,1,34,4]]}
["U odgovarajuće tablice na ovom radnom listu unesite procijenjeno i stvarno trošak za svaku kategorija. Više ili manje iznosi automatski se izračunavaju. Oznaka Ukrasi nalazi se u ćeliji s desne strane. U ćelijama u ovom stupcu nalaze se korisne upute za korištenje ovog radnog lista. Pomoću tipke sa strelicom prema dolje počnite s radom.","Ukrasi*"]
["Unesite troškove cvijeća u tablicu koja počinje u ćeliji s desne strane. Sljedeća je uputa u ćeliji A11.","KATEGORIJA","PROCIJENJENO","STVARNO","VIŠE/MANJE"]
[null,"Vrpce za sjedenje",{"v":0,"d":"0.00"},{"v":0,"d":"0.00"},{"$f":"'Ukrasi-Cvijeće-Darovi-Putovanje'!$C3-'Ukrasi-Cvijeće-Darovi-Putovanje'!$D3","v":{"v":0,"d":"0.00"}}]
[null,"Središnji ukrasi",{"v":300,"d":"300.00"},{"v":320,"d":"320.00"},{"$f":"'Ukrasi-Cvijeće-Darovi-Putovanje'!$C4-'Ukrasi-Cvijeće-Darovi-Putovanje'!$D4","v":{"v":-20,"d":"-20.00 "}}]
[null,"Svjećice",{"v":100,"d":"100.00"},{"v":75,"d":"75.00"},{"$f":"'Ukrasi-Cvijeće-Darovi-Putovanje'!$C5-'Ukrasi-Cvijeće-Darovi-Putovanje'!$D5","v":{"v":25,"d":"25.00"}}]
[null,"Rasvjeta",{"v":100,"d":"100.00"},{"v":75,"d":"75.00"},{"$f":"'Ukrasi-Cvijeće-Darovi-Putovanje'!$C6-'Ukrasi-Cvijeće-Darovi-Putovanje'!$D6","v":{"v":25,"d":"25.00"}}]
[null,"Baloni",{"v":200,"d":"200.00"},{"v":250,"d":"250.00"},{"$f":"'Ukrasi-Cvijeće-Darovi-Putovanje'!$C7-'Ukrasi-Cvijeće-Darovi-Putovanje'!$D7","v":{"v":-50,"d":"-50.00 "}}]
[null,"Ukupno za ukrase",{"$f":"SUBTOTAL(109,Ukrasi[PROCIJENJENO])","v":{"v":700,"d":"700.00"}},{"$f":"SUBTOTAL(109,Ukrasi[STVARNO])","v":{"v":720,"d":"720.00"}},{"$f":"SUBTOTAL(109,Ukrasi[VIŠE/MANJE])","v":{"v":-20,"d":"-20.00 "}}]
[null,"* Ne uključuje cvijeće"]
[]
["Oznaka Cvijeće nalazi se u ćeliji s desne strane.","Cvijeće"]
["Unesite pojedinosti u tablicu Cvijeće počevši s ćelijom s desne strane. Sljedeća se uputa nalazi u ćeliji A20.","KATEGORIJA","PROCIJENJENO","STVARNO","VIŠE/MANJE"]
[null,"Buketi",{"v":500,"d":"500.00"},{"v":450,"d":"450.00"},{"$f":"'Ukrasi-Cvijeće-Darovi-Putovanje'!$C13-'Ukrasi-Cvijeće-Darovi-Putovanje'!$D13","v":{"v":50,"d":"50.00"}}]
[null,"Ukrasi za rever",{"v":0,"d":"0.00"},{"v":0,"d":"0.00"},{"$f":"'Ukrasi-Cvijeće-Darovi-Putovanje'!$C14-'Ukrasi-Cvijeće-Darovi-Putovanje'!$D14","v":{"v":0,"d":"0.00"}}]
[null,"Ukrasi za zapešće",{"v":0,"d":"0.00"},{"v":0,"d":"0.00"},{"$f":"'Ukrasi-Cvijeće-Darovi-Putovanje'!$C15-'Ukrasi-Cvijeće-Darovi-Putovanje'!$D15","v":{"v":0,"d":"0.00"}}]
[null,"Obred",{"v":400,"d":"400.00"},{"v":400,"d":"400.00"},{"$f":"'Ukrasi-Cvijeće-Darovi-Putovanje'!$C16-'Ukrasi-Cvijeće-Darovi-Putovanje'!$D16","v":{"v":0,"d":"0.00"}}]
[null,"Prijem",{"v":0,"d":"0.00"},{"v":0,"d":"0.00"},{"$f":"'Ukrasi-Cvijeće-Darovi-Putovanje'!$C17-'Ukrasi-Cvijeće-Darovi-Putovanje'!$D17","v":{"v":0,"d":"0.00"}}]
[null,"Ukupno za ukrase",{"$f":"SUBTOTAL(109,Cvijeće[PROCIJENJENO])","v":{"v":900,"d":"900.00"}},{"$f":"SUBTOTAL(109,Cvijeće[STVARNO])","v":{"v":850,"d":"850.00"}},{"$f":"SUBTOTAL(109,Cvijeće[VIŠE/MANJE])","v":{"v":50,"d":"50.00"}}]
[]
["Oznaka Darovi nalazi se u ćeliji s desne strane.","Darovi"]
["Unesite pojedinosti u tablicu Darovi počevši s ćelijom s desne strane. Sljedeća se uputa nalazi u ćeliji A29.","KATEGORIJA","PROCIJENJENO","STVARNO","VIŠE/MANJE"]
[null,"Uzvanici",{"v":1000,"d":"1,000.00"},{"v":400,"d":"400.00"},{"$f":"'Ukrasi-Cvijeće-Darovi-Putovanje'!$C22-'Ukrasi-Cvijeće-Darovi-Putovanje'!$D22","v":{"v":600,"d":"600.00"}}]
[null,"Budući bračni drug 1",{"v":150,"d":"150.00"},{"v":200,"d":"200.00"},{"$f":"'Ukrasi-Cvijeće-Darovi-Putovanje'!$C23-'Ukrasi-Cvijeće-Darovi-Putovanje'!$D23","v":{"v":-50,"d":"-50.00 "}}]
[null,"Budući bračni drug 2",{"v":150,"d":"150.00"},{"v":200,"d":"200.00"},{"$f":"'Ukrasi-Cvijeće-Darovi-Putovanje'!$C24-'Ukrasi-Cvijeće-Darovi-Putovanje'!$D24","v":{"v":-50,"d":"-50.00 "}}]
[null,"Roditelji",{"v":25,"d":"25.00"},{"v":25,"d":"25.00"},{"$f":"'Ukrasi-Cvijeće-Darovi-Putovanje'!$C25-'Ukrasi-Cvijeće-Darovi-Putovanje'!$D25","v":{"v":0,"d":"0.00"}}]
[null,"Osobe koje čitaju tekstove/ostali sudionici",{"v":20,"d":"20.00"},{"v":250,"d":"250.00"},{"$f":"'Ukrasi-Cvijeće-Darovi-Putovanje'!$C26-'Ukrasi-Cvijeće-Darovi-Putovanje'!$D26","v":{"v":-230,"d":"-230.00 "}}]
[null,"Ukupno za darove",{"$f":"SUBTOTAL(109,Darovi[PROCIJENJENO])","v":{"v":1345,"d":"1,345.00"}},{"$f":"SUBTOTAL(109,Darovi[STVARNO])","v":{"v":1075,"d":"1,075.00"}},{"$f":"SUBTOTAL(109,Darovi[VIŠE/MANJE])","v":{"v":270,"d":"270.00"}}]
[]
["Oznaka Putovanje ili Prijevoz nalazi se u ćeliji s desne strane.","Putovanje/prijevoz"]
["Unesite pojedinosti u tablicu Putovanja počevši s ćelijom s desne strane. Sljedeće se upute nalaze u ćeliji A36.","KATEGORIJA","PROCIJENJENO","STVARNO","VIŠE/MANJE"]
[null,"Limuzine",{"v":100,"d":"100.00"},{"v":125,"d":"125.00"},{"$f":"'Ukrasi-Cvijeće-Darovi-Putovanje'!$C31-'Ukrasi-Cvijeće-Darovi-Putovanje'!$D31","v":{"v":-25,"d":"-25.00 "}}]
[null,"Parkiranje",{"v":0,"d":"0.00"},{"v":40,"d":"40.00"},{"$f":"'Ukrasi-Cvijeće-Darovi-Putovanje'!$C32-'Ukrasi-Cvijeće-Darovi-Putovanje'!$D32","v":{"v":-40,"d":"-40.00 "}}]
[null,"Taxiji",{"v":0,"d":"0.00"},{"v":0,"d":"0.00"},{"$f":"'Ukrasi-Cvijeće-Darovi-Putovanje'!$C33-'Ukrasi-Cvijeće-Darovi-Putovanje'!$D33","v":{"v":0,"d":"0.00"}}]
[null,"Ukupno za putovanje/prijevoz",{"$f":"SUBTOTAL(109,Putovanja[PROCIJENJENO])","v":{"v":100,"d":"100.00"}},{"$f":"SUBTOTAL(109,Putovanja[STVARNO])","v":{"v":165,"d":"165.00"}},{"$f":"SUBTOTAL(109,Putovanja[VIŠE/MANJE])","v":{"v":-65,"d":"-65.00 "}}]
[]
["Ostali Troškovi nalazi se u ćeliji s desne strane.","Ostali troškovi"]
["Unesite pojedinosti u tablicu Ostali Troškovi počevši s ćelijom s desne strane.","KATEGORIJA","PROCIJENJENO","STVARNO","VIŠE/MANJE"]
[null,"Matičar",{"v":0,"d":"0.00"},{"v":0,"d":"0.00"},{"$f":"'Ukrasi-Cvijeće-Darovi-Putovanje'!$C38-'Ukrasi-Cvijeće-Darovi-Putovanje'!$D38","v":{"v":0,"d":"0.00"}}]
[null,"Naknada u vijećnici/crkvi",{"v":40,"d":"40.00"},{"v":55,"d":"55.00"},{"$f":"'Ukrasi-Cvijeće-Darovi-Putovanje'!$C39-'Ukrasi-Cvijeće-Darovi-Putovanje'!$D39","v":{"v":-15,"d":"-15.00 "}}]
[null,"Koordinator vjenčanja",{"v":0,"d":"0.00"},{"v":0,"d":"0.00"},{"$f":"'Ukrasi-Cvijeće-Darovi-Putovanje'!$C40-'Ukrasi-Cvijeće-Darovi-Putovanje'!$D40","v":{"v":0,"d":"0.00"}}]
[null,"Probna večera",{"v":450,"d":"450.00"},{"v":450,"d":"450.00"},{"$f":"'Ukrasi-Cvijeće-Darovi-Putovanje'!$C41-'Ukrasi-Cvijeće-Darovi-Putovanje'!$D41","v":{"v":0,"d":"0.00"}}]
[null,"Zabava za zaruke",{"v":20,"d":"20.00"},{"v":50,"d":"50.00"},{"$f":"'Ukrasi-Cvijeće-Darovi-Putovanje'!$C42-'Ukrasi-Cvijeće-Darovi-Putovanje'!$D42","v":{"v":-30,"d":"-30.00 "}}]
[null,"Zabava za darivanje",{"v":30,"d":"30.00"},{"v":20,"d":"20.00"},{"$f":"'Ukrasi-Cvijeće-Darovi-Putovanje'!$C43-'Ukrasi-Cvijeće-Darovi-Putovanje'!$D43","v":{"v":10,"d":"10.00"}}]
[null,"Sastanci u salonu",{"v":45,"d":"45.00"},{"v":46,"d":"46.00"},{"$f":"'Ukrasi-Cvijeće-Darovi-Putovanje'!$C44-'Ukrasi-Cvijeće-Darovi-Putovanje'!$D44","v":{"v":-1,"d":"-1.00 "}}]
[null,"Djevojačka i momačka zabava",{"v":0,"d":"0.00"},{"v":0,"d":"0.00"},{"$f":"'Ukrasi-Cvijeće-Darovi-Putovanje'!$C45-'Ukrasi-Cvijeće-Darovi-Putovanje'!$D45","v":{"v":0,"d":"0.00"}}]
[null,"Doručak",{"v":300,"d":"300.00"},{"v":400,"d":"400.00"},{"$f":"'Ukrasi-Cvijeće-Darovi-Putovanje'!$C46-'Ukrasi-Cvijeće-Darovi-Putovanje'!$D46","v":{"v":-100,"d":"-100.00 "}}]
[null,"Sobe u hotelu",{"v":0,"d":"0.00"},{"v":0,"d":"0.00"},{"$f":"'Ukrasi-Cvijeće-Darovi-Putovanje'!$C47-'Ukrasi-Cvijeće-Darovi-Putovanje'!$D47","v":{"v":0,"d":"0.00"}}]
[null,"Ukupno za ostale troškove",{"$f":"SUBTOTAL(109,OstaliTroškovi[PROCIJENJENO])","v":{"v":885,"d":"885.00"}},{"$f":"SUBTOTAL(109,OstaliTroškovi[STVARNO])","v":{"v":1021,"d":"1,021.00"}},{"$f":"SUBTOTAL(109,OstaliTroškovi[VIŠE/MANJE])","v":{"v":-136,"d":"-136.00 "}}]